bitfinex/quotes_ETHUSD_20220201
["timestamp","ask_amount","ask_price","bid_price","bid_amount"]
[1643710998299,0.1832,2729.5,2728.8,0.40840705]
[1643710998682,0.1832,2729.5,2728.8,1.1531442]
[1643710998882,0.9160308,2729.3,2728.6,1.8319]
[1643710999082,1.09926,2729.2,2728.6,1.8319]
[1643710999328,1.09926,2729.2,2728.4,1.83201]
[1643710999733,1.09926,2729.2,2728.5,0.32301676]
[1643710999932,1.09926,2729.2,2728.5,1.08952209]
[1643711000338,1.09926,2729.2,2728.4,1.83201]
[1643711001332,1.09926,2729.2,2728.6,0.78743381]
[1643711001534,1.09926,2729.2,2728.9,0.3445969]
[1643711001732,0.91606,2729.2,2728.9,0.3445969]
[1643711002534,0.91606,2729.2,2728.6,0.78743381]
[1643711002935,0.91606,2729.2,2728.8,0.91596]
[1643711005078,0.91606,2729.2,2728.8,1.34704038]
[1643711005478,0.91606,2729.2,2728.8,0.91596]
[1643711006681,0.91606,2729.2,2728.9,0.37001925]
[1643711007820,0.3,2729.3,2728.9,0.37001925]
[1643711008026,0.3,2729.3,2728.9,0.89801925]
[1643711008320,1.21576,2729.4,2728.9,1.89801925]
[1643711008823,1.21576,2729.4,2728.9,0.89801925]
[1643711009020,1.21576,2729.4,2728.9,1.89801925]
[1643711009219,0.91576,2729.4,2728.9,1.89801925]
[1643711009427,0.91576,2729.4,2729.1,0.91573]
[1643711010026,0.91576,2729.4,2729.1,1.91573]
[1643711010226,0.91576,2729.4,2729.2,0.75597367]
[1643711010662,0.91465452,2729.4,2729.2,0.75597367]
[1643711012867,0.91563,2729.7,2729.3,0.528]
[1643711013070,0.91563,2729.7,2729.4,0.91559]
[1643711013268,0.3,2729.6,2729.4,0.91559]
[1643711013467,10.5087,2730.1,2729.4,0.91559]
[1643711013468,0.1831,2730.5,2729.4,0.91559]
[1643711013670,0.1831,2730.5,2729.5,0.53333818]
[1643711013868,0.1831,2730.6,2729.8,0.72140265]
[1643711014747,0.91543,2730.3,2729.8,0.72140265]
[1643711014949,0.91543,2730.3,2730.1,1.83087]
[1643711015147,1.21543,2730.3,2730.1,1.83087]
[1643711015750,1.21543,2730.3,2730.1,2.83087]
[1643711015949,1.21543,2730.3,2730.1,1.83087]
[1643711016149,1.21543,2730.3,2730.1,2.83087]
[1643711017149,1.21543,2730.3,2730.2,0.31848929]
[1643711017751,1.21543,2730.3,2730.1,2.83087]
[1643711018379,1.21543,2730.3,2730.1,1.83087]
[1643711018778,1.21543,2730.3,2730.0,0.91543]
[1643711018779,0.3,2730.2,2730.0,0.91543]
[1643711018983,0.3,2730.2,2729.7,0.91567]
[1643711018984,0.4831,2730.2,2729.7,0.91567]
[1643711019180,1.83139,2730.1,2729.7,0.91567]
[1643711019386,2.13139,2730.1,2729.7,0.91567]
[1643711019584,0.3,2730.0,2729.7,0.91567]
[1643711019983,2.13139,2730.1,2729.7,0.91567]
[1643711020183,0.3,2730.1,2729.7,0.91567]
[1643711020583,2.74673,2730.6,2729.7,0.91567]
[1643711020884,0.25,2730.5,2729.7,1.91567]
[1643711021184,1.0987906,2730.4,2729.7,1.91567]
[1643711021384,0.6,2730.3,2729.7,1.91567]
[1643711021584,0.91546,2730.2,2729.7,1.91567]
[1643711021820,0.3,2730.1,2729.7,1.91567]
[1643711022521,1.2156057,2730.1,2729.7,1.91567]
[1643711022726,0.4831,2730.0,2729.7,0.91567]
[1643711022926,0.4831,2730.0,2729.2,1.8315]
[1643711022927,0.18205975,2729.8,2729.2,1.8315]
[1643711023127,0.91585,2729.6,2729.2,1.8315]
[1643711023321,0.3,2729.5,2729.2,1.8315]
[1643711023721,1.21585,2729.6,2729.2,1.8315]
[1643711023924,0.3,2729.6,2729.3,0.1831]
[1643711024121,0.3,2729.6,2729.3,0.2962944]
[1643711024324,4.2015,2730.2,2729.3,0.2962944]
[1643711024531,0.91557,2729.8,2729.3,1.0]
[1643711024726,1.51557,2729.8,2729.6,0.39130095]
[1643711024927,1.51557,2729.8,2729.4,0.91552]
[1643711025127,1.51445735,2729.8,2729.4,0.91552]
[1643711025664,1.21557,2729.8,2729.4,0.91552]
[1643711025867,1.21557,2729.8,2729.4,1.83106]
[1643711026171,0.3,2729.8,2729.7,0.93036386]
[1643711026566,1.2155,2730.1,2729.6,1.0]
[1643711026767,1.2155,2730.1,2729.5,3.36557846]
[1643711026967,1.2155,2730.1,2729.5,2.36557846]
[1643711027270,1.2155,2730.1,2729.6,3.74657]
[1643711027466,0.3,2730.0,2729.7,0.91551]
[1643711027665,1.2155,2730.1,2729.7,0.91551]
[1643711027666,1.2155,2730.1,2729.7,1.91551]
[1643711028267,0.3,2730.0,2729.7,1.91551]
[1643711029066,1.2155,2730.1,2729.7,1.91551]
[1643711029526,0.9155,2730.1,2729.7,1.91551]
[1643711029727,0.9155,2730.1,2729.7,3.74648]
[1643711030126,0.9155,2730.1,2730.0,0.39579655]
[1643711030732,0.9155,2730.1,2729.7,3.74648]
[1643711031829,0.9155,2730.1,2730.0,0.4086097]
[1643711033268,8.7659,2730.6,2730.0,0.4086097]
[1643711033467,0.91543,2730.4,2730.2,0.91538]
[1643711033866,0.91543,2730.4,2730.2,1.91538]
[1643711034771,0.91543,2730.4,2730.2,2.70755813]
[1643711035875,3.7415,2730.7,2730.3,0.1831]
[1643711036076,5.0072,2731.1,2730.3,0.1831]
[1643711036077,5.0072,2731.1,2730.4,1.44322]
[1643711036479,5.0072,2731.1,2730.6,0.91517]
[1643711036678,11.765,2731.3,2730.6,1.44317]
[1643711036929,0.91519,2731.1,2730.8,0.44683565]
[1643711037127,0.91519,2731.1,2730.8,2.27714565]
[1643711037537,0.91519,2731.1,2730.9,0.91516]
[1643711037731,0.91519,2731.1,2730.9,1.91516]
[1643711039532,0.91407703,2731.1,2730.9,1.91516]
[1643711043887,1.83036,2731.3,2730.9,1.91516]
[1643711044085,3.6068,2731.7,2730.9,2.44316]
[1643711044086,1.83018,2731.6,2730.9,2.44316]
[1643711044326,3.1506,2731.8,2731.1,1.82993]
[1643711044525,3.9999,2732.1,2731.2,0.528]
[1643711044728,3.9999,2732.1,2731.4,0.91491]
[1643711044926,3.9999,2732.1,2731.7,0.4298987]
[1643711045123,1.3802,2732.3,2731.7,0.4298987]
[1643711045326,0.4829,2732.3,2731.7,0.4298987]
[1643711045723,0.91491,2732.0,2731.7,0.4298987]
[1643711045923,0.91491,2732.0,2731.7,1.3448087]
[1643711046127,1.21491,2732.0,2731.8,0.91492]
[1643711047327,1.21491,2732.0,2731.8,1.91492]
[1643711048171,0.91491,2732.0,2731.8,1.91492]
[1643711048774,0.1829,2732.4,2731.8,1.91492]
[1643711048976,0.18205975,2733.0,2731.9,6.5]
[1643711049179,3.7318,2733.4,2732.3,0.91468]
[1643711049377,3.7318,2733.4,2732.4,2.84093904]
[1643711049578,1.0949773,2733.5,2732.7,0.01864116]
[1643711049780,1.0949773,2733.5,2732.8,0.7107]
[1643711050482,1.0949773,2733.5,2733.0,1.82881]
[1643711050680,1.0949773,2733.5,2733.1,0.1827]
[1643711050877,1.0949773,2733.5,2733.3,0.41097939]
[1643711051077,1.0949773,2733.5,2733.4,1.42394068]
[1643711051680,1.0949773,2733.5,2733.4,0.91427]
[1643711051930,1.0949773,2733.5,2733.1,1.53196357]
[1643711052143,1.0949773,2733.5,2733.3,3.5]
[1643711052834,1.0949773,2733.5,2733.4,2.2713765]
[1643711053135,1.0949773,2733.5,2733.4,5.7713765]
[1643711054031,1.09386619,2733.5,2733.4,5.7713765]
[1643711054835,1.09386619,2733.5,2733.4,7.4843997]
[1643711055035,1.09386619,2733.5,2733.4,7.6672997]
[1643711055440,4.0304,2734.6,2733.6,1.0017932]
[1643711055685,0.1827,2734.9,2733.8,1.0017932]
[1643711055879,7.3008,2735.1,2734.0,1.0017932]
[1643711056078,7.3008,2735.1,2734.1,1.5297932]
[1643711056283,4.0941,2735.1,2734.1,1.5297932]
[1643711056478,0.1827,2735.1,2735.0,1.0017932]
[1643711056680,0.1827,2735.1,2735.0,0.48862648]
[1643711056882,0.1827,2735.2,2735.0,0.48862648]
[1643711057077,0.1827,2735.5,2735.0,0.48862648]
[1643711057277,3.8685,2735.6,2735.0,0.48862648]
[1643711057278,4.0512,2735.6,2735.0,0.48862648]
[1643711057677,4.0512,2735.6,2735.4,0.48862648]
[1643711057878,0.1827,2735.6,2735.4,0.48862648]
[1643711058885,0.1827,2735.8,2735.4,0.48862648]
[1643711059530,1.09641,2736.0,2735.4,0.48862648]
[1643711059929,0.91371,2736.0,2735.9,0.48862648]
[1643711060131,0.1827,2736.1,2735.9,0.48862648]
[1643711060528,0.1827,2736.2,2735.9,0.48862648]
[1643711060933,0.1827,2736.3,2735.9,0.48862648]
[1643711061131,0.1827,2736.3,2735.6,0.91366]
[1643711061132,0.1827,2736.3,2736.0,0.48862648]
[1643711061732,0.1827,2736.3,2736.0,0.90981037]
[1643711062035,0.1827,2736.3,2736.0,0.48862648]
[1643711062434,0.1827,2736.3,2735.4,1.0]
[1643711062636,0.91392,2736.0,2734.8,0.1827]
[1643711062832,0.01269941,2735.8,2734.7,0.00732851]
[1643711063072,0.01269941,2735.8,2735.0,0.34297273]
[1643711063273,0.1827,2735.7,2735.0,0.34297273]
[1643711063876,0.91403,2735.6,2735.0,0.34297273]
[1643711064076,0.4827,2735.5,2735.0,0.34297273]
[1643711064275,0.7827,2735.5,2735.0,0.34297273]
[1643711064479,0.4827,2735.5,2735.0,0.34297273]
[1643711064879,0.4827,2735.5,2734.8,1.77869377]
[1643711065080,0.7827,2735.5,2734.8,0.91393]
[1643711065282,2.07180753,2735.4,2734.7,0.00732851]
[1643711066083,2.07180753,2735.4,2735.0,0.37948063]
[1643711066279,0.7827,2735.5,2735.0,0.37948063]
[1643711066678,0.7827,2735.5,2734.7,0.00732851]
[1643711066921,2.36247541,2735.4,2734.4,1.1827]
[1643711067121,2.36247541,2735.4,2734.1,2.09681]
[1643711067122,0.91418,2735.2,2734.1,2.09681]
[1643711067320,3.13224012,2735.1,2734.1,1.09681]
[1643711067520,3.13224012,2735.1,2734.1,0.91411]
[1643711067723,0.31955476,2734.8,2733.9,0.1827]
[1643711067925,2.94452524,2734.7,2733.8,1.79341843]
[1643711068122,0.91441,2734.6,2733.8,0.79341843]
[1643711068426,0.3,2734.4,2733.8,0.79341843]
[1643711068628,2.09131914,2734.3,2733.8,0.79341843]
[1643711068826,2.09131914,2734.3,2733.8,1.13861299]
[1643711069026,0.3,2734.4,2733.7,0.1827]
[1643711069426,2.10740357,2734.3,2733.7,0.1827]
[1643711070026,2.10740357,2734.3,2733.7,1.43176991]
[1643711070428,2.10740357,2734.3,2733.7,1.24906991]
[1643711070678,0.9144,2734.2,2733.7,1.24906991]
[1643711071087,0.3,2734.2,2733.7,1.24906991]
[1643711071287,0.3,2734.4,2733.8,0.91423]
[1643711071479,4.2244,2734.6,2733.9,0.1827]
[1643711071684,4.18322714,2734.6,2733.9,0.1827]
[1643711072079,4.18322714,2734.6,2733.7,1.24906991]
[1643711072080,4.82102407,2734.6,2733.8,0.1827]
[1643711072281,2.05901761,2734.5,2733.7,0.91451779]
[1643711072484,2.05901761,2734.5,2733.4,0.1827]
[1643711072688,2.05901761,2734.5,2733.3,0.1827]
[1643711073085,0.18205975,2734.4,2733.3,0.1827]
[1643711073288,0.34944348,2734.0,2733.2,1.54140974]
[1643711073487,2.10180502,2733.9,2733.2,0.35870974]
[1643711073685,0.18205975,2734.2,2733.2,0.35870974]
[1643711073686,0.1829,2734.1,2733.2,0.35870974]
[1643711073891,0.4829,2734.1,2733.2,0.54160974]
[1643711074929,2.0695132,2734.0,2733.2,0.54160974]
[1643711075126,2.3695132,2734.0,2733.2,2.37033974]
[1643711075328,2.3695132,2734.0,2733.2,3.37033974]
[1643711075930,2.3695132,2734.0,2733.2,3.01163]
[1643711076136,2.3695132,2734.0,2732.7,5.66837]
[1643711076137,1.32109996,2733.9,2732.7,5.66837]
[1643711076333,1.32109996,2733.9,2732.7,0.1829]
[1643711076334,2.60044272,2733.8,2732.7,0.1829]
[1643711076536,0.36495975,2733.7,2732.4,0.01224074]
[1643711076731,0.3,2733.5,2732.4,0.01224074]
[1643711076931,2.4367356,2733.4,2732.9,0.44686232]
[1643711077331,2.7367356,2733.4,2732.3,2.01209]
[1643711077532,2.7367356,2733.4,2732.3,0.1829]
[1643711077732,0.18205975,2733.3,2732.2,2.32933]
[1643711077932,2.7367356,2733.4,2732.2,2.32933]
[1643711077933,0.1829,2733.2,2732.2,2.32933]
[1643711078176,0.1829,2733.3,2732.2,1.82933]
[1643711078378,0.1829,2733.3,2732.3,0.1829]
[1643711078581,0.1829,2733.3,2732.7,0.43057289]
[1643711078782,1.09773,2733.3,2732.4,0.89180981]
[1643711078983,1.27978975,2733.3,2732.4,0.89180981]
[1643711079186,2.08761691,2733.2,2732.4,0.89180981]
[1643711079481,0.1829,2733.1,2732.4,0.89180981]
[1643711079682,0.1829,2733.2,2732.4,0.89180981]
[1643711079882,2.32784606,2733.2,2732.4,0.89180981]
[1643711080080,2.29873539,2733.2,2732.4,0.89180981]
[1643711080283,0.1829,2733.2,2732.3,1.1829]
[1643711080483,0.1829,2733.2,2732.3,0.1829]
[1643711080682,0.1829,2733.2,2732.3,1.1829]
[1643711081184,0.1829,2733.2,2732.7,0.3338192]
[1643711082231,0.1829,2733.2,2732.4,1.92854429]
[1643711082432,0.1829,2733.2,2732.3,1.0]
[1643711082633,0.1829,2733.2,2732.2,2.01223]
[1643711082837,0.1829,2733.2,2732.2,3.01223]
[1643711083033,0.1829,2733.2,2732.2,2.01223]
[1643711083235,0.1829,2733.2,2732.7,0.38948096]
[1643711083236,2.54998119,2733.2,2732.7,0.38948096]
[1643711083435,0.3,2733.2,2732.7,0.38948096]
[1643711083634,0.48205975,2733.3,2732.7,0.38948096]
[1643711084034,0.18205975,2733.3,2732.7,0.38948096]
[1643711084838,0.18205975,2733.3,2732.3,1.0]
[1643711085238,0.91484,2733.2,2732.2,3.01223]
[1643711085438,0.91484,2733.2,2732.2,2.01223]
[1643711085439,2.45290059,2733.1,2732.2,2.01223]
[1643711085676,2.45290059,2733.1,2732.3,1.0]
[1643711085878,2.45290059,2733.1,2732.2,0.1829]
[1643711085879,0.37822883,2732.9,2732.2,0.1829]
[1643711086082,0.37822883,2732.9,2732.1,0.32688221]
[1643711086083,2.65059871,2732.8,2732.1,0.32688221]
[1643711086278,0.91501,2732.6,2732.1,0.32688221]
[1643711089188,1.21501,2732.6,2732.1,0.32688221]
[1643711091247,0.3,2732.6,2732.1,0.32688221]
[1643711091447,0.1829,2733.0,2732.1,2.15645221]
[1643711091647,1.2399,2733.2,2733.0,0.00109649]
[1643711091848,1.2399,2733.2,2732.2,0.1829]
[1643711092045,1.2399,2733.2,2732.7,0.42020833]
[1643711092253,2.49980403,2733.3,2732.7,0.42020833]
[1643711092447,1.09676975,2733.3,2732.7,0.42020833]
[1643711092647,1.39676975,2733.3,2732.7,0.42020833]
[1643711093090,1.69676975,2733.3,2732.7,0.42020833]
[1643711093691,0.91471,2733.3,2732.7,0.42020833]
[1643711094496,0.18205975,2733.2,2732.2,1.1829]
[1643711094697,0.18205975,2733.2,2732.2,1.0]
[1643711094698,1.82976,2733.1,2732.2,1.0]
[1643711094900,0.36495975,2733.2,2732.2,1.0]
[1643711094901,0.1829,2733.0,2732.2,0.528]
[1643711095097,0.3,2733.1,2732.3,0.1829]
[1643711095296,0.4829,2733.3,2732.3,0.1829]
[1643711095499,0.4829,2733.3,2732.9,0.34409182]
[1643711095695,0.1829,2733.3,2732.9,0.34409182]
[1643711095896,0.1829,2733.3,2732.6,0.84448808]
[1643711096824,0.1829,2733.4,2732.6,0.84448808]
[1643711097225,0.1829,2733.4,2732.9,0.43086231]
[1643711097825,0.1829,2733.4,2732.6,0.84448808]
[1643711098331,5.28095975,2733.6,2732.9,0.91453]
[1643711098332,3.8748,2733.6,2732.9,0.91453]
[1643711098527,0.32109997,2733.9,2732.9,1.44253]
[1643711098727,0.13819997,2733.9,2733.0,0.1829]
[1643711099126,0.13819997,2733.9,2733.5,0.3455307]
[1643711099325,0.13819997,2733.9,2733.6,0.1829]
[1643711099530,4.1292,2734.1,2733.6,0.1829]
[1643711100230,3.8292,2734.1,2733.6,0.1829]
[1643711100678,3.8292,2734.1,2733.5,0.3455307]
[1643711100877,3.8292,2734.1,2733.5,1.3455307]
[1643711101080,3.8292,2734.1,2733.5,0.3455307]
[1643711101279,3.8292,2734.1,2733.5,1.3455307]
[1643711101480,3.8292,2734.1,2733.5,0.3455307]
[1643711101681,4.1292,2734.1,2733.5,1.3455307]
[1643711101880,0.1827,2734.4,2734.0,0.33690491]
[1643711102081,0.1827,2734.5,2734.0,0.33690491]
[1643711102283,4.95212,2734.7,2734.0,0.33690491]
[1643711103181,5.25212,2734.7,2734.0,0.33690491]
[1643711104656,0.3,2734.7,2734.1,0.91412]
[1643711104842,1.5327,2734.8,2734.1,1.44212]
[1643711105040,2.13484428,2734.7,2734.1,1.44854077]
[1643711105247,2.13484428,2734.7,2734.1,0.00642077]
[1643711105248,0.1827,2734.7,2734.1,0.00642077]
[1643711106041,0.1827,2734.7,2734.1,0.81834424]
[1643711106644,0.91424,2734.7,2734.1,1.72604347]
[1643711107045,0.1827,2735.4,2734.5,0.01238067]
[1643711107244,2.31754428,2735.6,2734.6,0.7107]
[1643711107443,2.31754428,2735.6,2734.6,0.528]
[1643711107642,0.36475515,2734.8,2734.6,0.528]
[1643711107847,0.91404,2735.1,2734.2,1.18667416]
[1643711108092,0.91404,2735.1,2734.2,1.00397416]
[1643711108093,4.14585428,2735.0,2734.2,1.00397416]
[1643711108293,0.3,2734.9,2734.2,0.00397416]
[1643711108692,0.3,2734.9,2734.6,0.44583465]
[1643711108893,2.31101,2735.0,2734.2,0.00397416]
[1643711109500,2.31101,2735.0,2734.3,0.92974289]
[1643711110699,1.82831,2735.0,2734.4,0.1827]
[1643711111198,1.82831,2735.0,2734.6,0.41607625]
[1643711111401,1.82831,2735.0,2734.3,0.92974289]
[1643711111402,2.10086741,2734.9,2734.3,0.92974289]
[1643711111600,1.82831,2735.0,2734.3,0.92974289]
[1643711111835,0.3,2734.9,2734.3,0.92974289]
[1643711112037,0.91409,2734.8,2734.3,1.84376289]
[1643711112244,0.3,2734.7,2734.3,1.84376289]
[1643711112438,0.3,2734.7,2734.4,0.86491857]
[1643711112641,0.3,2734.9,2734.4,0.86491857]
[1643711112837,0.3,2734.9,2734.4,1.86491857]
[1643711113042,0.29888851,2734.9,2734.4,0.86491857]
[1643711113239,0.29888851,2734.9,2734.4,1.86491857]
[1643711114745,0.14888851,2734.9,2734.4,1.86491857]
[1643711114942,0.91398,2735.1,2734.4,1.86491857]
[1643711116377,1.21398,2735.1,2734.4,1.86491857]
[1643711116573,1.21398,2735.1,2734.4,0.75328657]
[1643711116974,1.21398,2735.1,2734.8,0.78565521]
[1643711117173,1.21398,2735.1,2734.6,0.91393]
[1643711117574,0.3,2735.1,2734.6,2.35578]
[1643711117776,0.1827,2735.3,2734.7,1.82754]
[1643711117975,0.13087146,2735.4,2734.7,1.82754]
[1643711118181,0.13087146,2735.4,2734.7,1.0]
[1643711118374,0.13087146,2735.4,2735.0,0.87899492]
[1643711118774,0.13087146,2735.4,2734.9,0.91383]
[1643711119329,0.12765685,2735.4,2734.9,0.91383]
[1643711119732,0.91392,2735.2,2735.0,0.36003669]
[1643711119932,0.91392,2735.2,2734.9,0.91383]
[1643711120334,0.3,2735.1,2734.7,1.1827]
[1643711120536,2.12797,2735.1,2734.7,1.1827]
[1643711120748,4.44551428,2735.1,2733.9,1.828]
[1643711120939,0.73257326,2735.0,2733.8,0.90015706]
[1643711121135,0.9143,2734.8,2733.6,5.55936]
[1643711121335,0.4827,2734.7,2733.6,5.55936]
[1643711121538,1.82858,2734.6,2733.6,5.55936]
[1643711121734,0.3,2734.4,2733.7,0.1828]
[1643711121937,0.3,2734.4,2733.9,2.74226]
[1643711122134,0.3,2734.4,2733.9,2.01088]
[1643711122135,0.91429,2734.4,2733.9,2.01088]
[1643711122334,0.91429,2734.4,2733.9,1.82818]
[1643711122533,1.21429,2734.4,2733.9,2.54844764]
[1643711122936,0.3,2734.4,2733.9,2.54844764]
[1643711123181,0.3,2734.4,2734.0,0.1827]
[1643711123487,0.3,2734.7,2734.0,0.1827]
[1643711123681,0.3,2734.7,2734.0,1.1827]
[1643711123881,0.3,2734.7,2734.4,0.42810829]
[1643711124086,0.3,2734.7,2734.4,1.13733871]
[1643711124284,4.91775685,2735.4,2734.5,0.1827]
[1643711124285,0.31035685,2735.4,2734.5,0.1827]
[1643711124486,0.31035685,2735.4,2734.4,2.66533871]
[1643711124487,0.12765685,2735.4,2734.4,1.84803871]
[1643711124689,0.12765685,2735.4,2734.5,1.0]
[1643711124985,0.12765685,2735.4,2734.9,0.38828932]
[1643711125188,0.1827,2735.3,2734.4,1.41993042]
[1643711125586,0.91392,2735.2,2734.6,0.91385]
[1643711125788,0.3,2735.1,2734.6,0.91385]
[1643711125992,0.3,2735.1,2734.4,1.41993042]
[1643711125993,2.34336267,2735.1,2734.4,0.7107]
[1643711126188,0.4827,2735.1,2734.2,3.6557]
[1643711126386,0.4827,2735.1,2734.2,1.82791]
[1643711126387,2.53380038,2735.1,2734.2,1.82791]
[1643711126590,2.53380038,2735.1,2734.1,2.22230123]
[1643711126591,0.39769346,2734.9,2734.1,2.22230123]
[1643711126842,0.91414,2734.8,2734.1,2.22230123]
[1643711127246,0.3,2734.7,2734.1,2.22230123]
[1643711127643,0.3,2734.7,2734.1,3.22230123]
[1643711127843,0.3,2734.7,2734.2,1.0]
[1643711128045,0.3,2734.7,2734.2,2.09672]
[1643711128245,1.09666,2735.2,2734.2,2.09672]
[1643711128445,0.1827,2735.3,2734.3,0.528]
[1643711128652,6.1524,2735.7,2734.5,1.82754]
[1643711128848,6.3351,2735.7,2734.6,0.7107]
[1643711129245,6.3351,2735.7,2734.6,1.7107]
[1643711129449,0.1827,2735.7,2735.1,1.25739734]
[1643711129650,2.92472,2735.8,2735.1,0.9138]
[1643711129849,0.9138,2735.6,2735.1,0.9138]
[1643711130251,0.3,2735.5,2735.1,0.9138]
[1643711131697,0.3,2735.5,2735.1,1.9138]
[1643711131899,0.3,2735.5,2735.1,1.33520343]
[1643711132098,0.3,2735.5,2735.1,2.33520343]
[1643711132498,0.3,2735.5,2735.1,1.33520343]
[1643711132698,0.3,2735.5,2735.1,2.33520343]
[1643711132899,0.3,2735.5,2735.1,1.33520343]
[1643711133199,0.3,2735.5,2735.1,2.33520343]
[1643711133399,0.3,2735.5,2735.1,1.33520343]
[1643711133600,0.3,2735.5,2735.1,2.33520343]
[1643711134203,0.3,2735.5,2735.1,1.33520343]
[1643711134437,0.3,2735.5,2735.1,2.33520343]
[1643711134641,0.3,2735.5,2735.1,1.33520343]
[1643711134839,0.3,2735.5,2735.1,2.33520343]
[1643711135438,0.3,2735.5,2735.1,4.16250343]
[1643711135840,0.9137,2735.9,2735.3,1.82732]
[1643711136041,0.9137,2735.9,2735.6,0.34203283]
[1643711136240,1.2137,2735.9,2735.6,1.18548336]
[1643711136839,1.2137,2735.9,2735.6,0.34203283]
[1643711139293,1.2137,2735.9,2735.3,1.82732]
[1643711140099,0.9137,2735.9,2735.7,0.70994112]
[1643711140508,0.9137,2735.9,2735.4,2.22418312]
[1643711140699,0.9137,2735.9,2735.4,2.75218312]
[1643711141098,0.9137,2735.9,2735.5,0.3930758]
[1643711141300,0.9137,2735.9,2735.6,0.1827]
[1643711141504,1.2137,2735.9,2735.6,0.1827]
[1643711142146,1.2137,2735.9,2735.7,0.91362]
[1643711142547,1.2137,2735.9,2735.5,0.3930758]
[1643711142747,1.21258758,2735.9,2735.5,0.3930758]
[1643711143553,1.21258758,2735.9,2735.5,1.06702098]
[1643711144261,1.21258758,2735.9,2735.6,0.91365]
[1643711144854,1.21258758,2735.9,2735.4,1.19324312]
[1643711145055,1.21258758,2735.9,2735.4,0.1827]
[1643711145257,2.01035,2735.8,2735.4,0.1827]
[1643711145697,0.25,2735.7,2735.4,0.1827]
[1643711145898,0.25,2735.7,2735.5,0.40617623]
[1643711146098,0.91382,2735.9,2735.5,0.40617623]
[1643711147099,0.91382,2735.9,2735.4,1.0964]
[1643711147299,1.21382,2735.9,2735.2,1.0]
[1643711147497,1.21382,2735.9,2735.2,1.3]
[1643711147898,1.21382,2735.9,2735.4,0.91373]
[1643711148298,1.21382,2735.9,2735.8,0.40574427]
[1643711148501,1.21382,2735.9,2735.4,0.91373]
[1643711148898,1.21382,2735.9,2735.4,1.21373]
[1643711149346,1.19582,2735.9,2735.4,1.21373]
[1643711149552,1.19582,2735.9,2735.7,0.32157351]
[1643711149950,1.19582,2735.9,2735.4,1.21373]
[1643711150152,1.19582,2735.9,2735.4,0.91373]
[1643711150655,5.17159266,2736.2,2735.5,0.9137128]
[1643711150849,5.17159266,2736.2,2735.5,1.2137128]
[1643711150850,0.1827,2736.1,2735.5,1.2137128]
[1643711151251,0.1827,2736.1,2735.5,2.2137128]
[1643711151454,0.1827,2736.1,2735.5,1.2137128]
[1643711151652,0.1827,2736.1,2735.5,1.3]
[1643711151859,0.1827,2736.1,2735.5,0.3]
[1643711152055,5.17159266,2736.2,2735.5,1.0]
[1643711152253,5.17159266,2736.2,2735.4,2.21373]
[1643711152453,5.17159266,2736.2,2735.5,0.9137168]
[1643711152852,5.17159266,2736.2,2736.0,0.3374714]
[1643711153093,0.01159266,2736.2,2735.5,1.9137168]
[1643711153293,0.01159266,2736.2,2735.5,0.9137168]
[1643711153493,0.01159266,2736.2,2735.5,1.9137168]
[1643711153894,0.01159266,2736.2,2735.5,1.0]
[1643711154093,0.01159266,2736.2,2735.6,0.38488097]
[1643711154295,0.01159266,2736.2,2735.3,0.1827]
[1643711154496,0.01159266,2736.2,2734.7,0.1827]
[1643711154497,1.90844299,2736.1,2734.7,0.1827]
[1643711154700,1.54368324,2736.0,2734.7,0.1827]
[1643711154894,0.1827,2735.9,2734.7,0.1827]
[1643711155396,0.32724026,2735.8,2734.7,0.1827]
[1643711155597,0.32724026,2735.8,2734.8,0.9139522]
[1643711155598,0.1827,2735.7,2734.8,0.9139522]
[1643711155795,0.01213465,2735.6,2734.7,0.1827]
[1643711155996,0.1827,2735.5,2734.7,0.1827]
[1643711156194,0.1827,2735.5,2734.5,0.01054312]
[1643711156595,0.1827,2735.5,2734.7,0.91404]
[1643711156843,0.1827,2735.6,2734.7,0.91404]
[1643711157044,3.8239,2735.7,2734.7,0.91404]
[1643711157244,3.8239,2735.7,2735.4,0.42705027]
[1643711157442,0.18205975,2736.1,2735.4,0.42705027]
[1643711157641,1.72640741,2736.0,2735.4,0.42705027]
[1643711157840,0.1827,2736.0,2735.4,0.42705027]
[1643711159852,0.1827,2736.0,2735.4,1.34084027]
[1643711160050,0.1827,2736.0,2735.6,0.9137709]
[1643711160246,0.1827,2736.1,2735.6,1.8275109]
[1643711160446,0.1827,2736.1,2735.7,0.3]
[1643711160692,0.1827,2736.2,2735.7,0.91361689]
[1643711160891,0.1827,2736.2,2735.7,0.3]
[1643711161094,0.18205975,2736.1,2735.2,1.82754]
[1643711161295,0.18205975,2736.1,2735.1,0.1827]
[1643711161296,2.25440381,2736.0,2735.1,0.1827]
[1643711161492,1.72576356,2735.9,2735.2,0.3]
[1643711161692,1.72576356,2735.9,2735.1,0.1827]
[1643711161693,1.72640381,2735.8,2735.1,0.1827]
[1643711161894,0.1827,2735.8,2735.1,0.1827]
[1643711162093,0.1827,2735.8,2735.5,0.3394392]
[1643711162292,1.1409,2736.2,2735.5,0.3394392]
[1643711162293,1.50565975,2736.2,2735.5,0.3394392]
[1643711162496,1.54368729,2736.1,2735.3,0.91382]
[1643711162692,1.54368729,2736.1,2735.4,0.3]
[1643711163498,0.38384838,2736.0,2735.4,0.3]
[1643711163700,0.38384838,2736.0,2735.3,1.3]
[1643711163902,1.72575219,2735.9,2735.2,0.1827]
[1643711164099,1.72575219,2735.9,2735.1,0.3]
[1643711164100,1.54369244,2735.8,2735.1,0.3]
[1643711164338,0.1827,2735.7,2735.0,0.3]
[1643711164540,0.1827,2735.8,2735.0,0.3]
[1643711164737,0.1827,2735.8,2734.9,1.8277703]
[1643711164938,1.54381042,2735.7,2734.9,1.8277703]
[1643711165143,1.72587017,2735.7,2734.9,1.8277703]
[1643711165338,0.18205975,2735.7,2734.9,1.8277703]